[Event "Commonwealth Open 2019"]
[Site "Delhi"]
[Date "2019.07.05"]
[Round "7.1"]
[White "Gupta, Abhijeet"]
[Black "Lalith, Babu M R"]
[Result "1/2-1/2"]
[ECO "D38"]
[WhiteElo "2606"]
[BlackElo "2571"]
[Annotator "RC"]
[PlyCount "60"]
[EventDate "2019.06.30"]
[EventType "swiss"]
[EventCountry "IND"]
[SourceTitle "playchess.com"]
[Source "ChessBase"]
[SourceQuality "1"]
[TimeControl "5400+30"]

1. d4 {[%emt 0:00:00]} d5 {[%emt 0:02:38]} 2. c4 {[%emt 0:02:40]} e6 {[%emt 0:00:04]} 3. Nc3 {[%emt 0:00:17]} Bb4 {[%emt 0:00:05]} 4. Nf3 {[%emt 0:00:33]} Nf6 {[%emt 0:00:05]} 5. e3 {[%emt 0:00:15]} O-O {[%emt 0:00:12]} 6. Bd2 {[%emt 0:00:10]} b6 {[%emt 0:00:04]} 7. cxd5 {[%emt 0:00:12]} exd5 {[%emt 0:00:08]} 8. Rc1 {[%emt 0:00:06]} Bb7 {[%emt 0:00:13]} 9. Bd3 {[%emt 0:00:06]} Nbd7 {[%emt 0:00:17]} 10. O-O {[%emt 0:00:19]} Be7 {[%emt 0:01:50]} 11. Be1 {[%emt 0:02:26]} c5 {[%emt 0:05:10]} 12. Ne5 {[%emt 0:00:10]} cxd4 {[%emt 0:03:25]} 13. Nxd7 {[%emt 0:00:20]} Qxd7 {[%emt 0:00:47]} 14. Nb5 {[%emt 0:00:07]} Rac8 {[%emt 0:10:49]} 15. Rxc8 {[%emt 0:00:45]} Rxc8 {[%emt 0:19:40]} 16. Nxd4 {[%emt 0:00:05]} Ne4 {[%emt 0:00:23]} 17. Bb5 {[%emt 0:05:47]} Qd8 {[%emt 0:01:43]} 18. Qg4 {[%emt 0:00:50]} Bf6 {[%emt 0:03:05]} 19. Bd3 {[%emt 0:08:13]} Rc1 {[%emt 0:09:30]} 20. Bb4 {[%emt 0:10:35]} Rxf1+ {[%emt 0:00:49]} 21. Bxf1 {[%emt 0:00:05]} Qc7 {[%emt 0:10:58]} 22. Qd1 {[%emt 0:03:34]} Bxd4 {[%emt 0:03:34]} 23. Qxd4 {[%emt 0:24:59]} Qc2 {[%emt 0:03:51]} 24. Be1 {[%emt 0:01:39]} Qc1 {[%emt 0:01:21]} 25. Qe5 {[%emt 0:00:59]} g5 {[%emt 0:00:13]} 26. Bc3 {[%emt 0:16:52]} Nxc3 {[%emt 0:00:17]} 27. Qxg5+ {[%emt 0:00:14]} Kf8 {[%emt 0:00:15]} 28. Qd8+ {[%emt 0:00:24]} Kg7 {[%emt 0:00:03]} 29. Qg5+ {[%emt 0:00:04]} Kf8 {[%emt 0:00:04]} 30. Qd8+ {[%emt 0:00:06]} Kg7 {[%emt 0:00:02]} 1/2-1/2

[Event "Commonwealth Open 2019"]
[Site "Delhi"]
[Date "2019.07.05"]
[Round "7.2"]
[White "Narayanan.S.L"]
[Black "Erigaisi, Arjun"]
[Result "1-0"]
[ECO "D45"]
[WhiteElo "2603"]
[BlackElo "2526"]
[Annotator "RC"]
[PlyCount "75"]
[EventDate "2019.06.30"]
[EventType "swiss"]
[EventCountry "IND"]
[SourceTitle "playchess.com"]
[Source "ChessBase"]
[SourceQuality "1"]
[TimeControl "5400+30"]

1. d4 {[%emt 0:00:00]} Nf6 {[%emt 0:00:48]} 2. c4 {[%emt 0:00:00]} e6 {[%emt 0:00:07]} 3. Nf3 {[%emt 0:00:00]} d5 {[%emt 0:00:07]} 4. Nc3 {[%emt 0:00:00]} c6 {[%emt 0:00:25]} 5. e3 {[%emt 0:00:00]} Nbd7 {[%emt 0:00:06]} 6. Qc2 {[%emt 0:00:00]} Bd6 {[%emt 0:00:07]} 7. Bd3 {[%emt 0:00:05]} dxc4 {[%emt 0:00:08]} 8. Bxc4 {[%emt 0:00:04]} O-O {[%emt 0:00:08]} 9. O-O {[%emt 0:00:05]} b5 {[%emt 0:00:24]} 10. Bd3 {[%emt 0:00:16]} Bb7 {[%emt 0:00:08]} 11. e4 {[%emt 0:00:06]} e5 {[%emt 0:00:07]} 12. h3 {[%emt 0:00:05]} Re8 {[%emt 0:01:01]} 13. dxe5 {[%emt 0:00:10]} Nxe5 {[%emt 0:00:07]} 14. Nxe5 {[%emt 0:00:07]} Bxe5 {[%emt 0:00:08]} 15. Be3 {[%emt 0:00:05]} a6 {[%emt 0:09:55]} 16. a4 {[%emt 0:00:11]} Bd4 {[%emt 0:11:17]} 17. Bxd4 {[%emt 0:00:09]} Qxd4 {[%emt 0:00:07]} 18. Rad1 {[%emt 0:00:14]} Qc5 {[%emt 0:02:26]} 19. Rfe1 {[%emt 0:09:38]} g6 {[%emt 0:04:54]} 20. Qc1 {[%emt 0:22:53]} Rad8 {[%emt 0:13:07]} 21. Qh6 {[%emt 0:18:23]} Nd7 {[%emt 0:20:02]} 22. Bb1 {[%emt 0:13:41]} Ne5 {[%emt 0:02:50]} 23. Qh4 {[%emt 0:01:20]} Rxd1 {[%emt 0:06:52]} 24. Rxd1 {[%emt 0:00:07]} Bc8 {[%emt 0:02:03]} 25. Rd8 {[%emt 0:18:46]} Qf8 {[%emt 0:05:08]} 26. Rxe8 {[%emt 0:00:13]} Qxe8 {[%emt 0:00:05]} 27. f4 {[%emt 0:00:55]} b4 {[%emt 0:08:59]} 28. Na2 {[%emt 0:04:08]} Nc4 {[%emt 0:00:28]} 29. Nxb4 {[%emt 0:00:56]} Qd7 {[%emt 0:00:04]} 30. Kh2 {[%emt 0:03:34]} Nd2 {[%emt 0:04:25]} 31. Bc2 {[%emt 0:03:06]} Qd6 {[%emt 0:03:01]} 32. Nd3 {[%emt 0:02:01]} Nxe4 {[%emt 0:00:39]} 33. Ne5 {[%emt 0:00:06]} Nc5 {[%emt 0:00:28]} 34. b4 {[%emt 0:00:27]} Ne6 {[%emt 0:00:17]} 35. Qf6 {[%emt 0:00:10]} Qxb4 {[%emt 0:02:43]} 36. Qxf7+ {[%emt 0:00:00]} Kh8 {[%emt 0:00:00]} 37. Qf6+ {[%emt 0:00:00]} Kg8 {[%emt 0:00:00]} 38. Nxc6 {[%emt 0:00:00]} 1-0

[Event "Commonwealth Open 2019"]
[Site "Delhi"]
[Date "2019.07.05"]
[Round "7.3"]
[White "Kulkarni, Bhakti"]
[Black "Aravindh, Chithambaram Vr."]
[Result "0-1"]
[ECO "D37"]
[WhiteElo "2380"]
[BlackElo "2598"]
[Annotator "ChessBase"]
[PlyCount "90"]
[EventDate "2019.06.30"]
[EventType "swiss"]
[EventCountry "IND"]
[SourceTitle "playchess.com"]
[Source "ChessBase"]
[SourceQuality "1"]
[TimeControl "5400+30"]

1. d4 {[%emt 0:00:00]} Nf6 {[%emt 0:00:00]} 2. c4 {[%emt 0:00:27]} e6 {[%emt 0:00:00]} 3. Nf3 {[%emt 0:00:58]} d5 {[%emt 0:00:14]} 4. Nc3 {[%emt 0:00:48]} a6 {[%emt 0:00:56]} 5. cxd5 {[%emt 0:02:09]} exd5 {[%emt 0:00:06]} 6. Bg5 {[%emt 0:00:21]} Be6 {[%emt 0:00:10]} 7. e3 {[%emt 0:01:26]} Nbd7 {[%emt 0:00:10]} 8. Bd3 {[%emt 0:01:08]} h6 {[%emt 0:00:18]} 9. Bh4 {[%emt 0:01:05]} g5 {[%emt 0:00:18]} 10. Bg3 {[%emt 0:00:07]} Nh5 {[%emt 0:00:10]} 11. Be5 {[%emt 0:08:53]} Ng7 {[%emt 0:00:18]} 12. h3 {[%emt 0:01:46]} Nxe5 {[%emt 0:03:50]} 13. Nxe5 {[%emt 0:00:16]} Bd6 {[%emt 0:00:35]} 14. Qf3 {[%emt 0:01:26]} c6 {[%emt 0:14:39]} 15. O-O-O {[%emt 0:04:15]} Qe7 {[%emt 0:03:26]} 16. Kb1 {[%emt 0:01:06]} O-O-O {[%emt 0:01:15]} 17. Rc1 {[%emt 0:02:29]} Qc7 {[%emt 0:04:18]} 18. Qf6 {[%emt 0:16:00]} Nh5 {[%emt 0:00:51]} 19. Qf3 {[%emt 0:04:32]} Ng7 {[%emt 0:00:07]} 20. Qf6 {[%emt 0:00:11]} Rhg8 {[%emt 0:10:48]} 21. Ng4 {[%emt 0:10:56]} Be7 {[%emt 0:04:51]} 22. Qe5 {[%emt 0:07:35]} f5 {[%emt 0:06:21]} 23. Qxc7+ {[%emt 0:04:26]} Kxc7 {[%emt 0:00:05]} 24. Ne5 {[%emt 0:00:10]} Bf6 {[%emt 0:02:27]} 25. Na4 {[%emt 0:04:17]} Bxe5 {[%emt 0:01:38]} 26. dxe5 {[%emt 0:00:14]} d4 {[%emt 0:00:06]} 27. exd4 {[%emt 0:02:33]} Rxd4 {[%emt 0:00:28]} 28. Nc5 {[%emt 0:00:04]} Bd5 {[%emt 0:01:31]} 29. Rhd1 {[%emt 0:02:59]} Re8 {[%emt 0:09:37]} 30. f3 {[%emt 0:08:37]} Rxe5 {[%emt 0:00:39]} 31. Re1 {[%emt 0:00:30]} Rxe1 {[%emt 0:00:30]} 32. Rxe1 {[%emt 0:00:00]} Kb6 {[%emt 0:02:11]} 33. Nd7+ {[%emt 0:00:03]} Ka7 {[%emt 0:00:06]} 34. Nc5 {[%emt 0:00:34]} Kb6 {[%emt 0:08:43]} 35. Nd7+ {[%emt 0:00:07]} Kc7 {[%emt 0:00:07]} 36. Nc5 {[%emt 0:00:23]} b6 {[%emt 0:00:04]} 37. Re7+ {[%emt 0:06:20]} Kd6 {[%emt 0:00:05]} 38. Rxg7 {[%emt 0:00:04]} Kxc5 {[%emt 0:00:05]} 39. Bxa6 {[%emt 0:03:00]} Rd2 {[%emt 0:01:37]} 40. Bc8 {[%emt 0:02:30]} f4 {[%emt 0:01:12]} 41. h4 {[%emt 0:01:18]} Rxg2 {[%emt 0:00:21]} 42. hxg5 {[%emt 0:00:04]} Rxg5 {[%emt 0:02:21]} 43. Rh7 {[%emt 0:00:19]} h5 {[%emt 0:00:33]} 44. Kc2 {[%emt 0:01:10]} Kd4 {[%emt 0:00:05]} 45. a4 {[%emt 0:01:13]} Rg2+ {[%emt 0:00:45]} 0-1

[Event "Commonwealth Open 2019"]
[Site "Delhi"]
[Date "2019.07.05"]
[Round "7.4"]
[White "Vaishali, R."]
[Black "Deepan, Chakkravarthy J."]
[Result "0-1"]
[ECO "B31"]
[WhiteElo "2338"]
[BlackElo "2557"]
[Annotator "ChessBase"]
[PlyCount "90"]
[EventDate "2019.06.30"]
[EventType "swiss"]
[EventCountry "IND"]
[SourceTitle "playchess.com"]
[Source "ChessBase"]
[SourceQuality "1"]
[TimeControl "5400+30"]

1. e4 {[%emt 0:00:00]} c5 {[%emt 0:00:35]} 2. Nf3 {[%emt 0:00:00]} Nc6 {[%emt 0:00:12]} 3. Bb5 {[%emt 0:00:11]} g6 {[%emt 0:00:05]} 4. O-O {[%emt 0:00:14]} Bg7 {[%emt 0:00:03]} 5. Re1 {[%emt 0:00:13]} e5 {[%emt 0:01:36]} 6. b4 {[%emt 0:01:04]} cxb4 {[%emt 0:04:35]} 7. a3 {[%emt 0:00:34]} b3 {[%emt 0:01:00]} 8. cxb3 {[%emt 0:00:55]} Nge7 {[%emt 0:00:07]} 9. Bb2 {[%emt 0:00:53]} O-O {[%emt 0:00:15]} 10. b4 {[%emt 0:15:17]} d5 {[%emt 0:08:40]} 11. exd5 {[%emt 0:21:50]} Qxd5 {[%emt 0:00:17]} 12. Nc3 {[%emt 0:00:30]} Qd8 {[%emt 0:00:26]} 13. Bc4 {[%emt 0:06:06]} Bg4 {[%emt 0:17:39]} 14. Ne4 {[%emt 0:02:21]} Rc8 {[%emt 0:02:19]} 15. Neg5 {[%emt 0:15:59]} Nd5 {[%emt 0:17:08]} 16. Qb3 {[%emt 0:03:58]} Bxf3 {[%emt 0:01:25]} 17. Nxf3 {[%emt 0:00:47]} Nb6 {[%emt 0:01:42]} 18. Bb5 {[%emt 0:02:46]} Nd4 {[%emt 0:00:32]} 19. Nxd4 {[%emt 0:11:54]} exd4 {[%emt 0:00:06]} 20. Be2 {[%emt 0:01:17]} Qg5 {[%emt 0:16:39]} 21. Bf3 {[%emt 0:01:22]} Nc4 {[%emt 0:02:00]} 22. Bxb7 {[%emt 0:03:36]} Nxb2 {[%emt 0:06:05]} 23. Bxc8 {[%emt 0:01:39]} Rxc8 {[%emt 0:01:46]} 24. f4 {[%emt 0:05:36]} Qxf4 {[%emt 0:04:34]} 25. Rf1 {[%emt 0:00:32]} Qxd2 {[%emt 0:00:05]} 26. Qxf7+ {[%emt 0:00:33]} Kh8 {[%emt 0:00:04]} 27. Rae1 {[%emt 0:00:46]} h6 {[%emt 0:02:43]} 28. Qxg6 {[%emt 0:01:30]} Qg5 {[%emt 0:01:34]} 29. Qa6 {[%emt 0:01:32]} Rd8 {[%emt 0:02:32]} 30. h4 {[%emt 0:00:29]} Qxh4 {[%emt 0:00:45]} 31. Qc6 {[%emt 0:00:31]} d3 {[%emt 0:01:52]} 32. Re8+ {[%emt 0:00:04]} Rxe8 {[%emt 0:00:20]} 33. Qxe8+ {[%emt 0:00:03]} Kh7 {[%emt 0:00:04]} 34. Rf7 {[%emt 0:00:11]} Qd4+ {[%emt 0:01:31]} 35. Kh2 {[%emt 0:00:07]} d2 {[%emt 0:01:29]} 36. Rxg7+ {[%emt 0:00:42]} Kxg7 {[%emt 0:00:47]} 37. Qe7+ {[%emt 0:00:02]} Kg6 {[%emt 0:00:04]} 38. Qe8+ {[%emt 0:00:08]} Kf5 {[%emt 0:00:14]} 39. Qh5+ {[%emt 0:00:43]} Ke6 {[%emt 0:00:49]} 40. Qe8+ {[%emt 0:00:23]} Kd5 {[%emt 0:01:06]} 41. Qg8+ {[%emt 0:00:51]} Kc6 {[%emt 0:00:30]} 42. Qc8+ {[%emt 0:00:56]} Kb5 {[%emt 0:00:34]} 43. Qb7+ {[%emt 0:01:17]} Ka4 {[%emt 0:00:19]} 44. Qc6+ {[%emt 0:00:15]} Kxa3 {[%emt 0:00:34]} 45. Qa6+ {[%emt 0:00:10]} Na4 {[%emt 0:00:22]} 0-1

[Event "Commonwealth Open 2019"]
[Site "Delhi"]
[Date "2019.07.05"]
[Round "7.5"]
[White "Debashis, Das"]
[Black "Wagh, Suyog"]
[Result "1-0"]
[ECO "D12"]
[WhiteElo "2544"]
[BlackElo "2250"]
[Annotator "ChessBase"]
[PlyCount "123"]
[EventDate "2019.06.30"]
[EventType "swiss"]
[EventCountry "IND"]
[SourceTitle "playchess.com"]
[Source "ChessBase"]
[SourceQuality "1"]
[TimeControl "5400+30"]

1. d4 {[%emt 0:00:00]} d5 {[%emt 0:02:40]} 2. c4 {[%emt 0:00:00]} c6 {[%emt 0:00:45]} 3. Nf3 {[%emt 0:00:03]} Nf6 {[%emt 0:00:03]} 4. e3 {[%emt 0:00:29]} Bf5 {[%emt 0:00:06]} 5. Nc3 {[%emt 0:00:07]} e6 {[%emt 0:00:02]} 6. Nh4 {[%emt 0:00:09]} Be4 {[%emt 0:00:03]} 7. f3 {[%emt 0:00:07]} Bg6 {[%emt 0:00:01]} 8. Qb3 {[%emt 0:00:09]} Qc7 {[%emt 0:00:03]} 9. Bd2 {[%emt 0:00:19]} Be7 {[%emt 0:06:02]} 10. g3 {[%emt 0:00:10]} a6 {[%emt 0:01:06]} 11. Rc1 {[%emt 0:00:23]} dxc4 {[%emt 0:05:11]} 12. Bxc4 {[%emt 0:00:17]} Nbd7 {[%emt 0:13:27]} 13. Nxg6 {[%emt 0:00:36]} hxg6 {[%emt 0:00:07]} 14. a4 {[%emt 0:00:07]} O-O {[%emt 0:05:41]} 15. O-O e5 {[%emt 0:12:46]} 16. Ne2 {[%emt 0:00:48]} Rad8 {[%emt 0:03:19]} 17. Qc2 {[%emt 0:04:41]} Kh8 {[%emt 0:02:12]} 18. a5 {[%emt 0:02:34]} Qb8 {[%emt 0:02:23]} 19. Rcd1 {[%emt 0:06:06]} exd4 {[%emt 0:10:52]} 20. Nxd4 {[%emt 0:00:44]} Ne5 {[%emt 0:01:50]} 21. Ba2 {[%emt 0:02:10]} Nd5 {[%emt 0:03:01]} 22. Qa4 {[%emt 0:05:20]} c5 {[%emt 0:11:05]} 23. Ne2 {[%emt 0:04:24]} Nb4 {[%emt 0:03:26]} 24. Bxb4 {[%emt 0:11:07]} cxb4 {[%emt 0:00:10]} 25. Kg2 {[%emt 0:00:11]} Qa7 {[%emt 0:01:43]} 26. Qb3 {[%emt 0:00:56]} Qc5 {[%emt 0:01:26]} 27. Nf4 {[%emt 0:00:05]} Nc6 {[%emt 0:01:30]} 28. Nd5 {[%emt 0:10:04]} Nxa5 {[%emt 0:00:37]} 29. Qd3 {[%emt 0:00:05]} Bf6 {[%emt 0:01:00]} 30. Rf2 {[%emt 0:05:32]} Qb5 {[%emt 0:00:33]} 31. Qxb5 {[%emt 0:02:19]} axb5 {[%emt 0:00:02]} 32. b3 {[%emt 0:00:03]} Nc6 {[%emt 0:00:41]} 33. Bb1 {[%emt 0:01:48]} Bd4 {[%emt 0:08:44]} 34. Be4 {[%emt 0:01:07]} Bc5 {[%emt 0:00:14]} 35. Rfd2 {[%emt 0:02:43]} Rfe8 {[%emt 0:01:39]} 36. g4 {[%emt 0:06:58]} g5 {[%emt 0:01:09]} 37. Kf2 {[%emt 0:05:35]} g6 {[%emt 0:00:21]} 38. Nc7 {[%emt 0:02:27]} Rxd2+ {[%emt 0:00:27]} 39. Rxd2 {[%emt 0:00:02]} Re5 {[%emt 0:01:26]} 40. Rd5 {[%emt 0:00:19]} Rxd5 {[%emt 0:01:28]} 41. Bxd5 {[%emt 0:00:08]} Kg7 {[%emt 0:00:33]} 42. Nxb5 {[%emt 0:00:29]} f5 {[%emt 0:00:26]} 43. Ke2 {[%emt 0:09:28]} Kf6 {[%emt 0:00:03]} 44. h3 {[%emt 0:00:48]} f4 {[%emt 0:00:57]} 45. exf4 {[%emt 0:00:23]} Nd4+ {[%emt 0:00:12]} 46. Nxd4 {[%emt 0:00:08]} Bxd4 {[%emt 0:00:02]} 47. Kd3 {[%emt 0:00:15]} Bc5 {[%emt 0:01:12]} 48. Ke4 {[%emt 0:00:06]} Bd6 {[%emt 0:00:29]} 49. fxg5+ {[%emt 0:02:02]} Kxg5 {[%emt 0:00:01]} 50. Bf7 {[%emt 0:00:24]} Kf6 {[%emt 0:00:42]} 51. Bxg6 {[%emt 0:00:02]} Kxg6 {[%emt 0:00:09]} 52. f4 {[%emt 0:00:04]} Be7 {[%emt 0:01:04]} 53. Ke5 {[%emt 0:00:08]} Bd8 {[%emt 0:00:43]} 54. g5 {[%emt 0:01:18]} Bc7+ {[%emt 0:00:23]} 55. Ke4 {[%emt 0:00:04]} Bd8 {[%emt 0:00:28]} 56. h4 {[%emt 0:00:05]} Bc7 {[%emt 0:00:37]} 57. f5+ {[%emt 0:00:55]} Kh5 {[%emt 0:00:16]} 58. Kd5 {[%emt 0:00:57]} Bg3 {[%emt 0:00:45]} 59. Ke6 {[%emt 0:00:42]} Be1 {[%emt 0:00:31]} 60. Kf7 {[%emt 0:01:20]} Bc3 {[%emt 0:00:34]} 61. g6 {[%emt 0:00:12]} Kh6 {[%emt 0:00:31]} 62. f6 {[%emt 0:00:07]} 1-0

[Event "Commonwealth Open 2019"]
[Site "Delhi"]
[Date "2019.07.05"]
[Round "7.6"]
[White "Swapnil, S. Dhopade"]
[Black "Saravana, Krishnan P."]
[Result "1-0"]
[ECO "D10"]
[WhiteElo "2488"]
[BlackElo "2290"]
[Annotator "ChessBase"]
[PlyCount "143"]
[EventDate "2019.06.30"]
[EventType "swiss"]
[EventCountry "IND"]
[SourceTitle "playchess.com"]
[Source "ChessBase"]
[SourceQuality "1"]
[TimeControl "5400+30"]

1. d4 {[%emt 0:00:00]} d5 {[%emt 0:00:00]} 2. c4 {[%emt 0:00:00]} c6 {[%emt 0:00:00]} 3. Nc3 {[%emt 0:00:00]} dxc4 {[%emt 0:06:53]} 4. e3 {[%emt 0:00:27]} b5 {[%emt 0:04:26]} 5. a4 {[%emt 0:00:07]} b4 {[%emt 0:00:12]} 6. Ne4 {[%emt 0:00:04]} Nf6 {[%emt 0:00:46]} 7. Nxf6+ {[%emt 0:06:13]} exf6 {[%emt 0:01:00]} 8. Bxc4 {[%emt 0:00:06]} Bd6 {[%emt 0:01:23]} 9. Nf3 {[%emt 0:10:28]} a5 {[%emt 0:00:52]} 10. O-O {[%emt 0:00:31]} O-O {[%emt 0:01:32]} 11. b3 {[%emt 0:05:10]} Bg4 {[%emt 0:05:52]} 12. Bb2 {[%emt 0:00:34]} Nd7 {[%emt 0:01:22]} 13. Rc1 {[%emt 0:02:35]} Bh5 {[%emt 0:04:09]} 14. Be2 {[%emt 0:03:53]} Rc8 {[%emt 0:02:39]} 15. Nd2 {[%emt 0:00:15]} Bxe2 {[%emt 0:09:34]} 16. Qxe2 {[%emt 0:00:01]} Re8 {[%emt 0:00:23]} 17. Rc2 {[%emt 0:03:47]} Nb8 {[%emt 0:12:24]} 18. Rfc1 {[%emt 0:02:03]} Qc7 {[%emt 0:01:18]} 19. g3 {[%emt 0:00:39]} Qd7 {[%emt 0:00:59]} 20. Kg2 {[%emt 0:05:44]} Rcd8 {[%emt 0:04:49]} 21. Qf3 {[%emt 0:09:07]} Qe6 {[%emt 0:00:27]} 22. e4 {[%emt 0:07:56]} Qd7 {[%emt 0:02:33]} 23. Nc4 {[%emt 0:11:07]} Bc7 {[%emt 0:01:17]} 24. d5 {[%emt 0:00:17]} f5 {[%emt 0:21:44]} 25. dxc6 {[%emt 0:03:28]} fxe4 {[%emt 0:00:43]} 26. cxd7 {[%emt 0:03:18]} exf3+ {[%emt 0:00:05]} 27. Kxf3 {[%emt 0:00:03]} Nxd7 {[%emt 0:00:05]} 28. Rd1 {[%emt 0:09:46]} Nf8 {[%emt 0:01:16]} 29. Rcd2 {[%emt 0:01:29]} Ne6 {[%emt 0:03:16]} 30. Rxd8 {[%emt 0:07:13]} Nxd8 {[%emt 0:03:10]} 31. Rd7 {[%emt 0:02:44]} Ne6 {[%emt 0:00:14]} 32. Rd5 {[%emt 0:01:03]} Ra8 {[%emt 0:02:10]} 33. Ke3 {[%emt 0:00:09]} Kf8 {[%emt 0:00:39]} 34. f4 {[%emt 0:01:14]} f6 {[%emt 0:00:13]} 35. Bd4 {[%emt 0:01:43]} Ke7 {[%emt 0:01:11]} 36. Bb6 {[%emt 0:01:17]} Rc8 {[%emt 0:03:28]} 37. Bxa5 {[%emt 0:01:04]} Bxa5 {[%emt 0:00:06]} 38. Rxa5 {[%emt 0:00:03]} Nc5 {[%emt 0:00:13]} 39. Nb6 {[%emt 0:02:10]} Rc6 {[%emt 0:00:07]} 40. Nd5+ {[%emt 0:01:05]} Kf7 {[%emt 0:02:47]} 41. Nxb4 {[%emt 0:00:07]} Re6+ {[%emt 0:00:06]} 42. Kf2 {[%emt 0:00:28]} Nxb3 {[%emt 0:00:06]} 43. Ra7+ {[%emt 0:00:46]} Kf8 {[%emt 0:00:37]} 44. a5 {[%emt 0:00:29]} Re4 {[%emt 0:00:07]} 45. a6 {[%emt 0:00:57]} Nc5 {[%emt 0:03:59]} 46. Rc7 {[%emt 0:00:06]} Rxb4 {[%emt 0:00:33]} 47. a7 {[%emt 0:00:13]} Ra4 {[%emt 0:00:17]} 48. Rc8+ {[%emt 0:00:07]} Kf7 {[%emt 0:00:11]} 49. a8=Q Rxa8 {[%emt 0:00:05]} 50. Rxa8 {[%emt 0:00:08]} Ne4+ {[%emt 0:00:24]} 51. Ke3 {[%emt 0:00:09]} Nd6 {[%emt 0:00:07]} 52. Ra7+ {[%emt 0:00:10]} Kg6 {[%emt 0:00:12]} 53. Rd7 {[%emt 0:01:02]} Nf5+ {[%emt 0:00:11]} 54. Ke4 {[%emt 0:00:03]} h5 {[%emt 0:00:07]} 55. Rd5 {[%emt 0:01:19]} Nh6 {[%emt 0:00:37]} 56. h3 {[%emt 0:00:54]} Ng8 {[%emt 0:00:49]} 57. Rc5 {[%emt 0:01:50]} Nh6 {[%emt 0:00:19]} 58. Ra5 {[%emt 0:00:06]} Ng8 {[%emt 0:00:31]} 59. Kd5 {[%emt 0:00:30]} Ne7+ {[%emt 0:02:12]} 60. Ke6 {[%emt 0:00:01]} Nc6 {[%emt 0:00:06]} 61. Rd5 {[%emt 0:00:04]} Nb4 {[%emt 0:00:11]} 62. Rd7 {[%emt 0:00:21]} Nc2 {[%emt 0:00:24]} 63. Ke7 {[%emt 0:01:23]} Kf5 {[%emt 0:01:23]} 64. Rd5+ {[%emt 0:00:04]} Ke4 {[%emt 0:01:03]} 65. Rxh5 {[%emt 0:00:05]} Kf3 {[%emt 0:00:03]} 66. Kf7 {[%emt 0:01:29]} Kxg3 {[%emt 0:00:16]} 67. f5 {[%emt 0:00:40]} Kf4 {[%emt 0:00:54]} 68. Kxg7 {[%emt 0:00:04]} Ke5 {[%emt 0:00:03]} 69. Kg6 {[%emt 0:00:14]} Ne3 {[%emt 0:00:07]} 70. Rh8 {[%emt 0:00:09]} Nd5 {[%emt 0:00:05]} 71. Re8+ {[%emt 0:00:07]} Kf4 {[%emt 0:00:11]} 72. h4 {[%emt 0:00:17]} 1-0

[Event "Commonwealth Open 2019"]
[Site "Delhi"]
[Date "2019.07.05"]
[Round "7.7"]
[White "Iniyan, P."]
[Black "Rathnakaran, K.."]
[Result "1-0"]
[ECO "A65"]
[WhiteElo "2525"]
[BlackElo "2338"]
[Annotator "ChessBase"]
[PlyCount "65"]
[EventDate "2019.06.30"]
[EventType "swiss"]
[EventCountry "IND"]
[SourceTitle "playchess.com"]
[Source "ChessBase"]
[SourceQuality "1"]
[TimeControl "5400+30"]

1. d4 {[%emt 0:00:13]} Nf6 {[%emt 0:00:00]} 2. c4 {[%emt 0:00:04]} c5 {[%emt 0:00:00]} 3. d5 {[%emt 0:00:05]} e6 {[%emt 0:00:00]} 4. Nc3 {[%emt 0:00:05]} exd5 {[%emt 0:00:00]} 5. cxd5 {[%emt 0:00:07]} d6 {[%emt 0:00:00]} 6. e4 {[%emt 0:00:13]} g6 {[%emt 0:00:00]} 7. Nge2 {[%emt 0:00:06]} a6 {[%emt 0:00:05]} 8. a4 {[%emt 0:00:04]} Bg7 {[%emt 0:00:06]} 9. Ng3 {[%emt 0:00:04]} h5 {[%emt 0:00:15]} 10. Be2 {[%emt 0:00:44]} Nbd7 {[%emt 0:00:09]} 11. O-O {[%emt 0:02:39]} h4 {[%emt 0:00:08]} 12. Nh1 {[%emt 0:00:04]} Nh5 {[%emt 0:00:12]} 13. Be3 {[%emt 0:01:27]} Qe7 {[%emt 0:01:16]} 14. Qd2 {[%emt 0:03:49]} Rb8 {[%emt 0:00:09]} 15. f4 {[%emt 0:04:27]} h3 {[%emt 0:13:16]} 16. g4 {[%emt 0:06:13]} Nhf6 {[%emt 0:01:30]} 17. e5 {[%emt 0:15:23]} dxe5 {[%emt 0:03:06]} 18. f5 {[%emt 0:06:12]} gxf5 {[%emt 0:04:45]} 19. Rxf5 {[%emt 0:00:16]} b5 {[%emt 0:04:22]} 20. axb5 {[%emt 0:05:29]} axb5 {[%emt 0:00:10]} 21. Ng3 {[%emt 0:01:42]} b4 {[%emt 0:02:04]} 22. Nce4 {[%emt 0:01:38]} Nxe4 {[%emt 0:00:16]} 23. Nxe4 {[%emt 0:00:07]} c4 {[%emt 0:07:10]} 24. Bxc4 {[%emt 0:06:01]} Nb6 {[%emt 0:13:51]} 25. Bb5+ {[%emt 0:05:27]} Bd7 {[%emt 0:03:24]} 26. Bg5 {[%emt 0:03:45]} f6 {[%emt 0:05:17]} 27. d6 {[%emt 0:00:38]} Qe6 {[%emt 0:03:54]} 28. Nxf6+ {[%emt 0:00:41]} Bxf6 {[%emt 0:00:09]} 29. Bxf6 {[%emt 0:00:05]} Rg8 {[%emt 0:00:06]} 30. Rxe5 {[%emt 0:01:32]} Rxg4+ {[%emt 0:00:06]} 31. Kh1 {[%emt 0:00:05]} Kf7 {[%emt 0:02:03]} 32. Bxd7 {[%emt 0:00:22]} Qxf6 {[%emt 0:01:13]} 33. Re7+ {[%emt 0:00:30]} 1-0

[Event "Commonwealth Open 2019"]
[Site "Delhi"]
[Date "2019.07.05"]
[Round "7.8"]
[White "Swayams, Mishra"]
[Black "Navalgund, Niranjan"]
[Result "1/2-1/2"]
[ECO "A13"]
[WhiteElo "2493"]
[BlackElo "2326"]
[Annotator "ChessBase"]
[PlyCount "61"]
[EventDate "2019.06.30"]
[EventType "swiss"]
[EventCountry "IND"]
[SourceTitle "playchess.com"]
[Source "ChessBase"]
[SourceQuality "1"]
[TimeControl "5400+30"]

1. Nf3 {[%emt 0:01:15]} Nf6 {[%emt 0:00:00]} 2. c4 {[%emt 0:00:09]} e6 {[%emt 0:00:00]} 3. g3 {[%emt 0:01:40]} d5 {[%emt 0:00:00]} 4. Bg2 {[%emt 0:00:43]} dxc4 {[%emt 0:00:21]} 5. Qa4+ {[%emt 0:00:15]} Bd7 {[%emt 0:00:17]} 6. Qxc4 {[%emt 0:00:07]} c5 {[%emt 0:00:08]} 7. Ne5 {[%emt 0:04:23]} Qc8 {[%emt 0:04:54]} 8. Nxd7 {[%emt 0:02:23]} Qxd7 {[%emt 0:00:58]} 9. O-O {[%emt 0:00:32]} Nc6 {[%emt 0:00:14]} 10. Nc3 {[%emt 0:04:06]} Rc8 {[%emt 0:02:36]} 11. d3 {[%emt 0:02:12]} Be7 {[%emt 0:00:02]} 12. Be3 {[%emt 0:01:47]} Nd4 {[%emt 0:09:10]} 13. a4 {[%emt 0:02:39]} O-O {[%emt 0:02:24]} 14. Rfc1 {[%emt 0:03:02]} Rfd8 {[%emt 0:03:24]} 15. Qa2 {[%emt 0:01:27]} b6 {[%emt 0:02:41]} 16. h3 {[%emt 0:04:30]} Ne8 {[%emt 0:07:57]} 17. Bxd4 {[%emt 0:11:56]} cxd4 {[%emt 0:01:34]} 18. Ne4 {[%emt 0:00:18]} Rc7 {[%emt 0:04:11]} 19. Rxc7 {[%emt 0:00:30]} Qxc7 {[%emt 0:01:21]} 20. Qc4 {[%emt 0:11:24]} Qxc4 {[%emt 0:06:33]} 21. dxc4 {[%emt 0:00:17]} f5 {[%emt 0:00:13]} 22. Nd2 {[%emt 0:00:06]} d3 {[%emt 0:00:39]} 23. Kf1 {[%emt 0:11:24]} Bb4 {[%emt 0:01:10]} 24. Rd1 {[%emt 0:00:11]} Nf6 {[%emt 0:12:55]} 25. Nf3 {[%emt 0:09:39]} dxe2+ {[%emt 0:02:07]} 26. Kxe2 {[%emt 0:00:08]} Rxd1 {[%emt 0:00:02]} 27. Kxd1 {[%emt 0:00:05]} Bc5 {[%emt 0:00:58]} 28. Ke2 {[%emt 0:01:02]} Ne4 {[%emt 0:04:16]} 29. Ne5 {[%emt 0:03:10]} Nd6 {[%emt 0:04:48]} 30. b3 {[%emt 0:01:01]} a5 {[%emt 0:00:25]} 31. f4 {[%emt 0:05:05]} 1/2-1/2